bitfinex-derivatives/quotes_SOLF0:USTF0_20250325
["timestamp","ask_amount","ask_price","bid_price","bid_amount"]
[1742924246960,319.7389104,144.81,144.8,5.34979354]
[1742924248256,312.8349104,144.81,144.8,12.25429354]
[1742924248965,123.35941693,144.81,144.8,12.25429354]
[1742924251563,117.65909474,144.81,144.8,12.25429354]
[1742924253662,0.04677588,144.83,144.82,6.9036]
[1742924253862,0.04677588,144.83,144.82,37.50378279]
[1742924254459,0.04677588,144.83,144.82,37.53831156]
[1742924254857,0.04677588,144.83,144.82,12.23831156]
[1742924255064,0.04677588,144.83,144.82,37.53831156]
[1742924256863,28.78739412,144.87,144.86,6.9016]
[1742924257064,28.78739412,144.87,144.86,37.53631156]
[1742924257764,31.43935965,144.88,144.86,37.52820551]
[1742924257972,31.48597272,144.88,144.87,5.32660551]
[1742924258362,31.48597272,144.88,144.87,12.22780551]
[1742924259069,0.04661307,144.88,144.87,12.22780551]
[1742924260064,1.307e-05,144.88,144.87,12.22780551]
[1742924260366,49.7302289,144.9,144.89,6.9002]
[1742924260560,49.7302289,144.9,144.89,12.22680551]
[1742924261262,56.6293289,144.92,144.89,12.22680551]
[1742924261467,0.04878779,144.91,144.9,30.62660551]
[1742924261664,6.94808779,144.91,144.9,30.62660551]
[1742924261865,0.04878779,144.91,144.9,30.62660551]
[1742924262865,6.94808779,144.91,144.9,30.60848018]
[1742924263768,0.04878779,144.91,144.9,30.60848018]
[1742924264871,6.94808779,144.91,144.9,30.60848018]
[1742924268473,6.94808779,144.91,144.9,30.5987985]
[1742924268668,0.04878779,144.91,144.9,37.4984985]
[1742924271074,0.04878779,144.91,144.9,37.49298075]
[1742924274575,28.77666682,144.99,144.92,6.8984]
[1742924274779,6.8976,144.95,144.93,5.29328075]
[1742924275079,6.8976,144.95,144.94,30.56345711]
[1742924275278,6.8976,144.95,144.94,25.28]
[1742924275478,6.8976,144.95,144.94,30.56240344]
[1742924275677,6.8976,144.95,144.94,25.28]
[1742924276176,6.8976,144.95,144.94,30.56106193]
[1742924276376,6.8976,144.95,144.94,25.28]
[1742924276881,6.8976,144.95,144.94,30.55964261]
[1742924277181,6.8976,144.95,144.94,25.28]
[1742924279672,0.04567484,144.96,144.93,0.04551878]
[1742924279673,6.8978,144.94,144.93,0.04551878]
[1742924279877,6.8978,144.94,144.93,25.32551878]
[1742924280583,6.8978,144.94,144.93,30.60869423]
[1742924282186,0.04567484,144.96,144.93,30.60869423]
[1742924282379,0.04567484,144.96,144.94,5.28317545]
[1742924282583,0.04567484,144.96,144.93,25.32551878]
[1742924283285,6.8978,144.94,144.93,25.32551878]
[1742924283589,6.8978,144.94,144.93,30.60802786]
[1742924283781,6.8978,144.94,144.93,30.60840619]
[1742924285892,6.8978,144.94,144.93,30.60939937]
[1742924286187,6.8978,144.94,144.93,25.32551878]
[1742924286388,6.8978,144.94,144.93,0.04551878]
[1742924289892,6.8974,144.95,144.93,6.94381878]
[1742924290097,0.04567484,144.96,144.94,5.28919806]
[1742924290690,6.8974,144.95,144.94,5.28919806]
[1742924291200,6.8978,144.94,144.93,0.04551878]
[1742924291398,6.8978,144.94,144.93,5.33759869]
[1742924291996,6.8978,144.94,144.93,5.34134386]
[1742924294099,28.82234166,144.96,144.93,5.34134386]
[1742924294297,28.82234166,144.96,144.94,5.29582508]
[1742924294497,28.82234166,144.96,144.95,5.29582508]
[1742924294698,35.71954166,144.96,144.95,5.29582508]
[1742924298605,6.8978,144.94,144.93,0.04551878]
[1742924298805,6.8978,144.94,144.93,5.36026578]
[1742924299505,68.56459283,144.96,144.93,5.36026578]
[1742924299704,68.56459283,144.96,144.94,5.314747]
[1742924300002,68.56459283,144.96,144.95,5.314747]
[1742924300304,75.46169283,144.96,144.95,5.314747]
[1742924301405,115.14349212,144.96,144.95,5.314747]
[1742924303408,115.14349212,144.96,144.93,6.94361878]
[1742924303609,75.52181078,144.96,144.94,5.33044385]
[1742924303805,68.62471078,144.96,144.95,5.33044385]
[1742924304504,75.52161078,144.96,144.95,5.33044385]
[1742924305206,68.62471078,144.96,144.95,5.33044385]
[1742924306408,18.82552945,144.96,144.95,12.22784385]
[1742924306601,18.82552945,144.96,144.95,12.22700877]
[1742924309210,18.82552945,144.96,144.95,5.32960877]
[1742924309712,25.72242945,144.96,144.95,5.32960877]
[1742924309910,6.94257484,144.96,144.95,5.32960877]
[1742924310311,0.04567484,144.96,144.95,5.32960877]
[1742924311211,0.04567484,144.96,144.95,5.32608286]
[1742924311913,6.94257484,144.96,144.95,5.32630726]
[1742924313209,0.04567484,144.96,144.95,5.32630726]
[1742924313812,6.94257484,144.96,144.95,5.32630726]
[1742924314112,6.94257484,144.96,144.94,6.8976]
[1742924315813,6.94257484,144.96,144.93,6.94361878]
[1742924316810,6.94257484,144.96,144.94,6.8977]
[1742924318411,0.04567484,144.96,144.94,6.8977]
[1742924320217,0.04567484,144.96,144.95,6.8974]
[1742924325316,0.04567484,144.96,144.93,0.04551878]
[1742924325317,28.81607402,145.02,144.94,10.36532149]
[1742924326623,28.81607402,145.02,145.0,6.8946]
[1742924326819,35.71007402,145.02,145.01,25.24]
[1742924327019,35.76287856,145.02,145.01,25.24]
[1742924327412,56.69149751,145.02,145.01,25.24]
[1742924329325,6.94680454,145.02,145.01,25.24]
[1742924331221,6.8945,145.01,145.0,0.00016152]
[1742924331625,6.94710454,145.02,145.0,0.00016152]
[1742924331924,0.05280454,145.02,145.0,0.00016152]
[1742924332124,0.05280454,145.02,145.0,6.89486152]
[1742924333421,6.94690454,145.02,145.0,6.89486152]
[1742924333927,0.05280454,145.02,145.0,6.89486152]
[1742924334130,0.05280454,145.02,145.01,6.8945]
[1742924335426,0.05280454,145.02,145.0,6.89496152]
[1742924335825,0.05280454,145.02,145.01,6.8945]
[1742924336530,0.05280454,145.02,145.0,6.89486152]
[1742924337133,0.05280454,145.02,145.0,0.00016152]
[1742924340228,6.94700454,145.02,145.0,0.00016152]
[1742924344634,6.8945,145.01,145.0,0.00016152]
[1742924349257,6.94700454,145.02,145.0,0.00016152]
[1742924349856,6.8945,145.01,145.0,0.00016152]
[1742924356559,25.65117768,145.01,145.0,0.00016152]
[1742924356851,18.75667768,145.01,145.0,0.00016152]
[1742924357856,25.65117768,145.01,145.0,0.00016152]
[1742924358749,18.75667768,145.01,145.0,0.00016152]
[1742924359159,68.53287371,145.01,145.0,0.00016152]
[1742924359357,68.53287371,145.01,145.0,6.89516152]
[1742924359555,68.53287371,145.01,145.0,0.00016152]
[1742924360558,68.53287371,145.01,145.0,6.89516152]
[1742924362759,108.23076575,145.02,145.0,6.89516152]
[1742924362760,0.05280454,145.02,145.01,6.8945]
[1742924365258,4.54e-06,145.02,145.01,6.8945]
[1742924365460,28.81607402,145.06,145.05,6.8926]
[1742924365660,28.81607402,145.06,145.05,32.1126]
[1742924366967,108.22855929,145.07,145.06,6.8921]
[1742924367159,115.15681384,145.09,145.05,25.22]
[1742924367558,115.15681384,145.09,145.08,6.8912]
[1742924369070,20.92786825,145.09,145.07,0.05016423]
[1742924369764,20.92786825,145.09,145.08,6.8912]
[1742924370566,20.92786825,145.09,145.07,0.05016423]
[1742924371966,0.04570366,145.1,145.07,0.05016423]
[1742924372470,6.8912,145.08,145.07,0.05016423]
[1742924373261,6.8908,145.09,145.07,0.05016423]
[1742924373465,0.04570366,145.1,145.07,0.05016423]
[1742924374773,6.8912,145.08,145.07,0.05016423]
[1742924377173,6.8908,145.09,145.07,0.05016423]
[1742924377675,0.04570366,145.1,145.07,0.05016423]
[1742924377872,6.8912,145.08,145.07,0.05016423]
[1742924379674,6.8909,145.09,145.07,0.05016423]
[1742924383675,0.04570366,145.1,145.07,0.05016423]
[1742924384078,0.04570366,145.1,145.07,6.94176423]
[1742924384676,0.04570366,145.1,145.08,6.891]
[1742924385380,0.04570366,145.1,145.07,0.05016423]
[1742924385975,0.04570366,145.1,145.08,6.8911]
[1742924388084,0.04570366,145.1,145.09,6.8907]
[1742924388683,0.04570366,145.1,145.08,6.891]
[1742924389082,0.04570366,145.1,145.07,0.05016423]
[1742924389284,0.04570366,145.1,145.08,6.8912]
[1742924390988,0.04570366,145.1,145.09,6.8907]
[1742924391487,0.04570366,145.1,145.07,0.05016423]
[1742924394390,0.04570366,145.1,145.07,6.94156423]
[1742924394790,0.04570366,145.1,145.07,0.05016423]
[1742924401590,0.04570366,145.1,145.07,6.94176423]
[1742924402995,0.04570366,145.1,145.07,0.05016423]
[1742924406601,0.04570366,145.1,145.07,6.94176423]
[1742924409000,0.04570366,145.1,145.07,0.05016423]
[1742924410210,0.04570366,145.1,145.09,6.8907]
[1742924410608,0.04570366,145.1,145.08,25.2]
[1742924411910,0.04570366,145.1,145.08,32.0909]
[1742924412307,0.04570366,145.1,145.09,6.8907]
[1742924414512,28.74343123,145.15,145.14,6.8883]
[1742924416419,28.74343123,145.15,145.13,0.04814718]
[1742924416813,105.18744304,145.16,145.13,0.04814718]
[1742924417116,45.22698617,145.16,145.13,0.04814718]
[1742924417517,45.22698617,145.16,145.15,6.8879]
[1742924418218,45.22698617,145.16,145.14,6.8881]
[1742924418517,45.22698617,145.16,145.13,0.04814718]
[1742924419812,0.0490464,145.16,145.15,6.8879]
[1742924428221,0.0490464,145.16,145.15,25.18]
[1742924428620,0.0490464,145.16,145.15,32.0679]
[1742924430225,0.0490464,145.16,145.15,6.8879]
[1742924430425,0.0490464,145.16,145.15,32.0679]
[1742924434129,0.0490464,145.16,145.13,0.04814718]
[1742924434330,0.0490464,145.16,145.13,25.22814718]
[1742924434827,6.8882,145.15,145.13,32.11674718]
[1742924435430,0.0490464,145.16,145.13,25.22814718]
[1742924436129,0.0490464,145.16,145.15,6.8879]
[1742924446238,105.13839664,145.23,145.21,6.8846]
[1742924446537,105.13839664,145.24,145.19,25.16]
[1742924446838,105.13839664,145.24,145.2,25.16]
[1742924447035,105.13839664,145.24,145.14,13.7762]
[1742924447240,6.8866,145.18,145.1,13.7803]
[1742924447439,10.36532149,145.22,145.12,25.16]
[1742924447639,10.36532149,145.22,145.13,0.04697323]
[1742924447833,6.8862,145.19,145.12,25.16]
[1742924448039,6.8862,145.19,145.16,0.051465]
[1742924448240,6.8862,145.19,145.16,6.938565]
[1742924448740,6.8865,145.18,145.16,0.051465]
[1742924451044,28.74343123,145.22,145.16,0.051465]
[1742924451239,28.74343123,145.22,145.16,25.211465]
[1742924451441,28.74343123,145.21,145.19,6.8856]
[1742924451943,28.74343123,145.21,145.19,6.93643305]
[1742924452144,28.74343123,145.21,145.2,6.8855]
[1742924452734,28.74343123,145.21,145.19,6.93653305]
[1742924453243,28.74343123,145.21,145.19,0.05083305]
[1742924453638,28.74343123,145.24,145.19,0.05083305]
[1742924454041,6.8844,145.23,145.2,6.8855]
[1742924454241,28.74343123,145.24,145.2,6.8855]
[1742924454745,6.8842,145.23,145.2,6.8855]
[1742924454947,28.74343123,145.24,145.2,6.8855]
[1742924455141,6.8846,145.22,145.2,6.8855]
[1742924456041,6.885,145.21,145.19,0.05083305]
[1742924457246,6.8847,145.22,145.19,6.93663305]
[1742924458342,6.8851,145.21,145.19,0.05083305]
[1742924459152,6.8848,145.22,145.19,6.93653305]
[1742924460247,6.8848,145.22,145.2,6.8853]
[1742924460844,105.13839664,145.25,145.21,6.885]
[1742924461442,6.8838,145.24,145.21,6.885]
[1742924462044,112.02159664,145.25,145.22,6.8845]
[1742924462240,105.13839664,145.25,145.2,25.16]
[1742924462445,115.50371813,145.25,145.22,0.04856111]
[1742924462740,10.36532149,145.23,145.13,227.26]
[1742924462947,10.36532149,145.23,145.14,25.16]
[1742924463350,25.16,145.22,145.14,25.16]
[1742924463845,0.05256931,145.19,145.17,0.04373741]
[1742924464955,6.93856931,145.19,145.17,0.04373741]
[1742924467055,6.8864,145.18,145.17,0.04373741]
[1742924469554,0.05256931,145.19,145.08,373.68808149]
[1742924469756,13.7713,145.2,145.1,6.8898]
[1742924470261,13.7713,145.2,145.11,6.8897]
[1742924470654,13.7713,145.2,145.14,0.05087269]
[1742924470861,6.8879,145.15,145.14,0.05087269]
[1742924471761,0.04681536,145.17,145.14,0.05087269]
[1742924472158,6.8874,145.16,145.14,0.05087269]
[1742924472358,0.04681536,145.17,145.14,0.05087269]
[1742924472861,6.8874,145.16,145.14,0.05087269]
[1742924473261,6.8879,145.15,145.14,0.05087269]
[1742924477863,0.04681536,145.17,145.14,0.05087269]
[1742924478264,0.04681536,145.17,145.16,6.8874]
[1742924478461,0.04681536,145.17,145.16,32.0274]
[1742924478765,0.04681536,145.17,145.16,25.14]
[1742924479368,0.04681536,145.17,145.16,32.0274]
[1742924480159,6.93371536,145.17,145.16,25.14]
[1742924482272,0.04681536,145.17,145.16,25.14]
[1742924482869,0.04681536,145.17,145.16,32.0274]
[1742924483873,0.04681536,145.17,145.16,25.14]
[1742924486673,0.04681536,145.17,145.16,32.0274]
[1742924487574,0.04681536,145.17,145.16,25.14]
[1742924489574,6.93371536,145.17,145.16,25.14]
[1742924490170,0.04681536,145.17,145.16,25.14]
[1742924491271,0.04681536,145.17,145.16,32.0274]
[1742924492772,0.04681536,145.17,145.16,25.14]
[1742924493677,0.04681536,145.17,145.16,32.0274]
[1742924494771,0.04681536,145.17,145.16,25.14]
[1742924495978,6.93371536,145.17,145.16,25.14]
[1742924496375,6.8879,145.15,145.14,0.05087269]
[1742924504581,6.8875,145.16,145.14,0.05087269]
[1742924504780,0.04681536,145.17,145.14,0.05087269]
[1742924505180,6.93411536,145.17,145.14,0.05087269]
[1742924505381,0.04681536,145.17,145.14,6.93897269]
[1742924505583,0.04681536,145.17,145.14,0.05087269]
[1742924505781,6.8879,145.15,145.14,0.05087269]
[1742924509290,6.8879,145.15,145.06,227.28]
[1742924509291,10.36532149,145.15,145.06,227.28]
[1742924509491,10.36532149,145.15,145.06,252.42]
[1742924510192,6.891,145.09,145.06,259.3117]
[1742924510393,6.891,145.09,145.06,252.42]
[1742924510593,6.891,145.09,145.06,252.46977643]
[1742924510790,6.93644124,145.09,145.06,252.46977643]
[1742924511087,6.93644124,145.09,145.07,6.8916]
[1742924511694,0.04544124,145.09,145.06,252.46977643]
[1742924512297,0.04544124,145.09,145.08,6.8912]
[1742924520295,105.13839664,145.18,145.17,6.8869]
[1742924520495,97.11614714,145.18,145.17,32.0269]
[1742924521394,97.11614714,145.18,145.17,25.14]
[1742924521794,97.11614714,145.18,145.17,32.0269]
[1742924523298,97.11614714,145.18,145.17,25.14]
[1742924524303,97.11614714,145.18,145.17,32.0269]
[1742924525603,0.04836476,145.19,145.18,6.8864]
[1742924526197,0.04836476,145.19,145.17,32.0267]
[1742924526699,0.04836476,145.19,145.17,25.14]
[1742924526899,0.04836476,145.19,145.18,6.8864]
[1742924528902,0.04836476,145.19,145.16,0.05176207]
[1742924529500,6.8869,145.17,145.16,0.05176207]
[1742924530007,6.8866,145.18,145.16,0.05176207]
[1742924532009,10.36532149,145.17,145.1,25.12]
[1742924532410,10.36532149,145.17,145.1,32.01]
[1742924533111,6.889,145.13,145.12,0.05171522]
[1742924535415,6.8904,145.1,145.06,25.12]
[1742924535616,25.12,145.15,145.06,25.12]
[1742924535817,6.89,145.11,145.08,6.8911]
[1742924536517,6.93753293,145.11,145.08,6.94381321]
[1742924539616,6.93753293,145.11,145.09,6.8906]
[1742924539816,6.93753293,145.11,145.08,0.05271321]
[1742924540009,6.93753293,145.11,145.08,6.94361321]
[1742924541314,6.8903,145.1,145.08,6.94361321]
[1742924541715,6.8903,145.1,145.08,0.05271321]
[1742924542117,0.04753293,145.11,145.08,0.05271321]
[1742924542820,0.04753293,145.11,145.1,6.8902]
[1742924544923,0.04753293,145.11,145.09,6.8906]
[1742924546120,6.93733293,145.11,145.09,6.8906]
[1742924547323,6.93733293,145.11,145.08,6.94371321]
[1742924547722,6.8902,145.1,145.08,6.94371321]
[1742924548319,6.8907,145.09,145.08,0.05271321]
[1742924548822,0.04753293,145.11,145.03,32.0133]
[1742924549121,25.12,145.12,145.03,32.0133]
[1742924549424,25.12,145.12,145.03,25.12]
[1742924549715,25.12,145.12,145.04,6.893]
[1742924549910,0.04962877,145.09,145.06,0.04920382]
[1742924550624,0.04962877,145.09,145.06,6.94120382]
[1742924551019,6.8914,145.08,145.06,6.94120382]
[1742924551524,0.04962877,145.09,145.07,6.8915]
[1742924552618,105.00460569,145.16,145.07,25.12]
[1742924553026,111.89230569,145.16,145.13,6.8885]
[1742924553222,111.89230569,145.16,145.13,32.0085]
[1742924553420,105.00460569,145.16,145.13,25.12]
[1742924553615,105.00460569,145.16,145.15,6.8879]
[1742924553819,105.0555565,145.16,145.15,6.8879]
[1742924554232,105.0555565,145.16,145.14,6.8881]
[1742924554430,105.0555565,145.16,145.13,25.16709357]
[1742924556023,0.05095081,145.16,145.13,25.16709357]
[1742924556421,6.8879,145.15,145.13,32.05589357]
[1742924556825,6.8879,145.15,145.13,25.16709357]
[1742924557625,6.93865081,145.16,145.13,32.05579357]
[1742924558028,0.05095081,145.16,145.13,0.04709357]
[1742924558227,6.8879,145.15,145.13,0.04709357]
[1742924558623,0.05095081,145.16,145.13,0.04709357]
[1742924559526,0.05095081,145.16,145.14,6.8883]
[1742924560230,0.05095081,145.16,145.15,6.8879]
[1742924563529,0.05095081,145.16,145.14,6.8881]
[1742924563733,0.05095081,145.16,145.13,0.04709357]
[1742924564030,0.05095081,145.16,145.14,6.8883]
[1742924564532,6.93845081,145.16,145.13,6.93569357]
[1742924566434,6.93845081,145.16,145.14,6.8882]
[1742924566633,0.05095081,145.16,145.14,6.8882]
[1742924566933,0.05095081,145.16,145.13,0.04709357]
[1742924567134,0.05095081,145.16,145.14,6.8883]
[1742924567329,0.05095081,145.16,145.13,0.04709357]
[1742924568335,0.05095081,145.16,145.14,6.8883]
[1742924568829,0.05095081,145.16,145.13,0.04709357]
[1742924569036,0.05095081,145.16,145.15,6.8879]
[1742924569235,0.05095081,145.16,145.13,0.04709357]
[1742924569834,0.05095081,145.16,145.14,6.8881]
[1742924570034,0.05095081,145.16,145.13,0.04709357]
[1742924570334,0.05095081,145.16,145.14,6.8883]
[1742924571233,6.93845081,145.16,145.13,6.93569357]
[1742924572037,6.93845081,145.16,145.14,6.8883]
[1742924572239,0.05095081,145.16,145.14,6.8883]
[1742924572737,0.05095081,145.16,145.15,6.8879]
[1742924576038,0.05095081,145.16,145.13,0.04709357]
[1742924576241,6.93855081,145.16,145.13,0.04709357]
[1742924576442,0.05095081,145.16,145.13,0.04709357]
[1742924576744,0.05095081,145.16,145.15,6.8879]
[1742924579238,0.05095081,145.16,145.13,0.04709357]
[1742924579838,6.93855081,145.16,145.13,6.93549357]
[1742924580846,6.93855081,145.16,145.14,6.8883]
[1742924581042,6.93855081,145.16,145.13,0.04709357]
[1742924581344,6.93855081,145.16,145.14,6.8881]
[1742924581645,0.05095081,145.16,145.13,0.04709357]
[1742924581847,0.05095081,145.16,145.15,6.8879]
[1742924583649,5.081e-05,145.16,145.15,6.8879]
[1742924594057,5.081e-05,145.16,145.15,25.1]
[1742924594354,5.081e-05,145.16,145.13,0.04709357]
[1742924594653,5.081e-05,145.16,145.14,25.1]
[1742924594957,6.8881,145.15,145.14,25.1]
[1742924596252,5.081e-05,145.16,145.14,25.1]
[1742924597057,5.081e-05,145.16,145.14,31.988]
[1742924597256,5.081e-05,145.16,145.14,25.1]
[1742924597556,5.081e-05,145.16,145.15,6.8879]
[1742924599258,5.081e-05,145.16,145.14,31.9882]
[1742924600259,5.081e-05,145.16,145.15,6.8879]
[1742924601162,5.081e-05,145.16,145.15,31.9879]
[1742924607463,5.081e-05,145.16,145.15,25.1]
[1742924608064,5.081e-05,145.16,145.15,31.9879]
[1742924609968,5.081e-05,145.16,145.15,25.1]
[1742924610369,5.081e-05,145.16,145.13,0.04709357]
[1742924610968,6.8883,145.14,145.13,0.04709357]
[1742924612670,6.8881,145.15,145.13,0.04709357]
[1742924613272,6.8881,145.15,145.13,6.93559357]
[1742924614377,5.081e-05,145.16,145.13,0.04709357]
[1742924614981,5.081e-05,145.16,145.14,6.8879]
[1742924616174,5.081e-05,145.16,145.15,6.8879]
[1742924616573,6.88745081,145.16,145.13,0.04709357]
[1742924616879,6.88745081,145.16,145.14,6.888]
[1742924620776,6.8879,145.15,145.13,6.93559357]
[1742924620974,5.081e-05,145.16,145.13,0.04709357]
[1742924621578,6.8883,145.14,145.13,0.04709357]
[1742924625885,6.8881,145.15,145.13,6.93589357]
[1742924628286,6.8883,145.14,145.13,0.04709357]
[1742924634694,6.8903,145.1,145.08,31.9709]
[1742924634997,25.08,145.15,145.08,25.08]
[1742924635890,0.04513184,145.13,145.1,0.04742705]
[1742924636089,6.8898,145.11,145.1,0.04742705]
[1742924636388,6.8898,145.11,145.06,6.8918]
[1742924636389,0.04513184,145.13,145.06,31.9718]
[1742924636694,10.32878678,145.14,145.06,31.9718]
[1742924637605,0.04991707,145.11,145.09,0.05031234]
[1742924637789,6.8902,145.1,145.09,0.05031234]
[1742924645397,0.04991707,145.11,145.09,0.05031234]
[1742924645899,0.04991707,145.11,145.1,6.8902]
[1742924646100,0.04991707,145.11,145.1,31.9702]
[1742924651103,105.00460569,145.2,145.1,31.98]
[1742924651306,105.00460569,145.2,145.1,25.08]
[1742924651903,6.8862,145.19,145.16,6.8873]
[1742924652207,6.93810195,145.19,145.16,6.93883657]
[1742924652408,6.93810195,145.19,145.16,0.05153657]
[1742924652609,0.05190195,145.19,145.16,0.05153657]
[1742924653810,0.05190195,145.19,145.16,6.93873657]
[1742924655313,0.05190195,145.19,145.17,6.8869]
[1742924655710,0.05190195,145.19,145.16,0.05153657]
[1742924656309,0.05190195,145.19,145.17,6.8869]
[1742924657413,0.05190195,145.19,145.16,0.05153657]
[1742924658111,6.8864,145.18,145.16,0.05153657]
[1742924658310,0.05190195,145.19,145.16,0.05153657]
[1742924659612,6.8867,145.18,145.16,0.05153657]
[1742924659814,0.05190195,145.19,145.16,0.05153657]
[1742924660217,6.8869,145.17,145.16,0.05153657]
[1742924660517,0.05190195,145.19,145.16,0.05153657]
[1742924661517,6.8869,145.17,145.16,0.05153657]
[1742924662106,6.8865,145.18,145.16,0.05153657]
[1742924662310,0.05190195,145.19,145.16,0.05153657]
[1742924662616,6.93820195,145.19,145.16,0.05153657]
[1742924663118,6.93820195,145.19,145.16,6.93893657]
[1742924663614,6.93820195,145.19,145.16,0.05153657]
[1742924663919,0.05190195,145.19,145.16,0.05153657]
[1742924664420,0.05190195,145.19,145.18,6.8864]
[1742924665626,28.74343123,145.26,145.16,0.05153657]
[1742924665816,28.74343123,145.26,145.15,35.38878678]
[1742924666321,28.74343123,145.26,145.15,49.16398678]
[1742924666713,0.05045273,145.22,145.19,0.0488409]
[1742924666914,0.05045273,145.22,145.2,25.06]
[1742924667316,0.05045273,145.22,145.21,6.885]
[1742924668026,0.05045273,145.22,145.2,25.06]
[1742924669521,0.05045273,145.22,145.2,31.9453]
[1742924670526,0.05045273,145.22,145.2,25.06]
[1742924670927,6.93505273,145.22,145.2,25.06]
[1742924671327,0.05045273,145.22,145.2,31.9455]
[1742924671530,0.05045273,145.22,145.2,25.06]
[1742924672634,6.93515273,145.22,145.2,25.06]
[1742924672931,0.05045273,145.22,145.2,25.06]
[1742924673128,6.93525273,145.22,145.2,25.06]
[1742924673433,0.05045273,145.22,145.2,25.06]
[1742924673929,6.885,145.21,145.2,25.06]
[1742924674828,6.8855,145.2,145.19,0.0488409]
[1742924675729,0.05045273,145.22,145.19,0.0488409]
[1742924676128,6.8854,145.21,145.19,0.0488409]
[1742924676332,6.8854,145.21,145.19,6.9347409]
[1742924676730,6.8854,145.21,145.19,0.0488409]
[1742924676929,6.8855,145.2,145.19,0.0488409]
[1742924677531,6.8853,145.21,145.19,0.0488409]
[1742924677931,0.05045273,145.22,145.19,0.0488409]
[1742924678732,6.8855,145.2,145.19,0.0488409]
[1742924679234,6.8853,145.21,145.19,0.0488409]
[1742924679435,0.05045273,145.22,145.19,0.0488409]
[1742924679729,6.885,145.21,145.19,0.0488409]
[1742924680132,0.05045273,145.22,145.19,0.0488409]
[1742924680335,6.8855,145.2,145.19,0.0488409]
[1742924682837,6.8852,145.21,145.19,0.0488409]
[1742924683039,0.05045273,145.22,145.19,0.0488409]
[1742924683537,6.885,145.21,145.19,0.0488409]
[1742924683741,0.05045273,145.22,145.19,0.0488409]
[1742924684133,6.8855,145.2,145.19,0.0488409]
[1742924687038,0.05045273,145.22,145.19,0.0488409]
[1742924687337,0.05045273,145.22,145.2,6.8854]
[1742924688341,6.93525273,145.22,145.2,6.8854]
[1742924688740,0.05045273,145.22,145.19,6.9346409]
[1742924689247,6.885,145.21,145.19,6.9346409]
[1742924690343,6.885,145.21,145.19,0.0488409]
[1742924690843,6.93525273,145.22,145.19,0.0488409]
[1742924691246,6.93525273,145.22,145.2,6.8853]
[1742924691543,6.93525273,145.22,145.19,0.0488409]
[1742924691931,6.93525273,145.22,145.19,6.9345409]
[1742924692332,6.8851,145.21,145.19,0.0488409]
[1742924692546,0.05045273,145.22,145.19,0.0488409]
[1742924692746,6.8855,145.2,145.19,0.0488409]
[1742924697750,6.8851,145.21,145.19,0.0488409]
[1742924698146,0.05045273,145.22,145.19,0.0488409]
[1742924698443,6.8853,145.21,145.19,0.0488409]
[1742924698950,6.8853,145.21,145.19,6.9346409]
[1742924700747,6.8855,145.2,145.19,0.0488409]
[1742924701150,0.05045273,145.22,145.19,0.0488409]
[1742924701349,6.93525273,145.22,145.2,6.8855]
[1742924701549,6.93525273,145.22,145.19,0.0488409]
[1742924702254,6.93525273,145.22,145.2,6.8855]
[1742924703143,6.885,145.21,145.19,6.9346409]
[1742924703344,0.05045273,145.22,145.19,6.9346409]
[1742924703742,6.93535273,145.22,145.19,6.9346409]
[1742924704151,6.93535273,145.22,145.2,6.8854]
[1742924704352,0.05045273,145.22,145.19,0.0488409]
[1742924704745,0.05045273,145.22,145.21,6.885]
[1742924704942,0.05045273,145.22,145.21,31.925]
[1742924705955,0.05045273,145.22,145.21,25.04]
[1742924707248,6.93495273,145.22,145.21,25.04]
[1742924707446,0.05045273,145.22,145.21,25.04]
[1742924708153,0.05045273,145.22,145.21,31.925]
[1742924709056,6.93495273,145.22,145.21,25.04]
[1742924710358,0.05045273,145.22,145.21,31.925]
[1742924712657,0.05045273,145.22,145.21,25.04]
[1742924713058,6.93495273,145.22,145.21,25.04]
[1742924713259,0.05045273,145.22,145.2,6.8853]
[1742924713460,0.05045273,145.22,145.21,25.04]
[1742924713859,0.05045273,145.22,145.19,0.0488409]
[1742924714058,0.05045273,145.22,145.19,25.0888409]
[1742924714660,6.8855,145.2,145.19,25.0888409]
[1742924715060,6.8855,145.2,145.19,0.0488409]
[1742924715759,0.05045273,145.22,145.19,0.0488409]
[1742924716160,0.05045273,145.22,145.2,6.8852]
[1742924716362,0.05045273,145.22,145.19,0.0488409]
[1742924716758,0.05045273,145.22,145.2,6.8852]
[1742924717257,0.05045273,145.22,145.21,31.925]
[1742924720763,5.273e-05,145.22,145.21,31.925]